fUST/lending_fUST_20240902
["ID","MTS","AMOUNT","RATE_DAILY","PERIOD"]
[336926421,1725244258580,-686.55,0.00025753,2]
[336926422,1725244258590,-689.03,0.00025753,2]
[336926423,1725244258599,-565.48646795,0.00025753,2]
[336926424,1725244258609,-1195.91,0.00025753,2]
[336926425,1725244258619,-500.0,0.00025753,2]
[336926426,1725244258629,-507.20618054,0.00025753,2]
[336926427,1725244258638,-3222.21,0.00025753,2]
[336926428,1725244258647,-1060.84,0.00025753,2]
[336926429,1725244258657,-1192.01,0.00025753,2]
[336926430,1725244258667,-2658.99,0.00025753,2]
[336926431,1725244258676,-500.0,0.00025753,2]
[336926432,1725244258685,-1057.63,0.00025753,2]
[336926433,1725244258695,-1126.56,0.00025753,2]
[336926434,1725244258704,-1146.75,0.00025753,2]
[336926435,1725244258715,-1788.13,0.00025753,2]
[336926436,1725244258724,-9068.51,0.00025753,2]
[336926437,1725244258736,-1162.01,0.00025753,2]
[336926438,1725244258746,-247.997496,0.00025753,2]
[336926439,1725244258763,-500.0,0.00025753,2]
[336926440,1725244258773,-500.0,0.00025753,2]
[336926441,1725244258783,-500.0,0.00025753,2]
[336926442,1725244258794,-500.0,0.00025753,2]
[336926443,1725244258803,-500.0,0.00025753,2]
[336926444,1725244258813,-500.0,0.00025753,2]
[336926445,1725244258823,-159.0,0.0002589,2]
[336926446,1725244258832,-600.0,0.0002592,2]
[336926447,1725244258842,-158.44,0.00025927,7]
[336926448,1725244258852,-159.58,0.00025927,7]
[336926449,1725244258861,-159.641674,0.00025929,2]
[336926450,1725244258871,-330.274636,0.00025929,2]
[336926451,1725244258880,-159.641673,0.00025929,2]
[336926452,1725244258890,-159.641674,0.00025929,2]
[336926453,1725244258900,-159.641674,0.00025929,2]
[336926454,1725244258910,-150.0,0.00025962,2]
[336926455,1725244258920,-300.0,0.00025966,2]
[336926456,1725244258931,-500.0,0.00026026,2]
[336926457,1725244258940,-500.0,0.00026026,2]
[336926458,1725244258951,-3200.0,0.00026027,2]
[336926459,1725244258962,-561.37,0.00026027,2]
[336926460,1725244258972,-572.60577821,0.00026027,2]
[336926461,1725244258981,-500.0,0.00026027,2]
[336926462,1725244258991,-500.0,0.00026027,2]
[336926463,1725244259000,-500.0,0.00026027,2]
[336926464,1725244259012,-500.0,0.00026027,2]
[336926465,1725244259021,-500.0,0.00026027,2]
[336926466,1725244259031,-491.56845709,0.00026027,2]
[336926467,1725244259041,-500.0,0.00026027,2]
[336926468,1725244259051,-339.18871603,0.00026027,2]
[336926469,1725244259060,-500.0,0.00026027,2]
[336926470,1725244259070,-638.44,0.00026027,2]
[336926471,1725244259080,-664.15,0.00026027,2]
[336926472,1725244259090,-500.0,0.00026027,2]
[336926473,1725244259100,-561.25,0.00026027,2]
[336926474,1725244259110,-500.0,0.00026027,2]
[336926475,1725244259119,-500.0,0.00026027,2]
[336926476,1725244259131,-500.0,0.00026027,2]
[336926477,1725244259142,-1199.58,0.00026027,2]
[336926478,1725244259151,-500.0,0.00026027,2]
[336926479,1725244259162,-500.0,0.00026027,2]
[336926480,1725244259171,-476.41743067,0.00026027,2]
[336926481,1725244259182,-500.0,0.00026027,2]
[336926482,1725244259192,-983.39,0.00026027,2]
[336926483,1725244259203,-500.0,0.00026027,2]
[336926484,1725244259214,-500.0,0.00026027,2]
[336926485,1725244259223,-500.0,0.00026027,2]
[336926486,1725244259233,-500.0,0.00026027,2]
[336926487,1725244259243,-707.21,0.00026027,2]
[336926488,1725244259253,-711.51,0.00026027,2]
[336926489,1725244259266,-591.72,0.00026027,2]
[336926490,1725244259276,-509.95,0.00026027,2]
[336926491,1725244259285,-500.0,0.00026027,2]
[336926492,1725244259295,-500.0,0.00026027,2]
[336926493,1725244259304,-500.0,0.00026027,2]
[336926494,1725244259313,-837.03,0.00026027,2]
[336926495,1725244259323,-256.801416,0.00026027,7]
[336926496,1725244259457,-500.0,0.00026027,2]
[336926497,1725244259469,-256.801416,0.00026027,7]
[336926498,1725244259479,-500.0,0.00026027,2]
[336926499,1725244259488,-674.02,0.00026027,2]
[336926500,1725244259500,-500.0,0.00026027,2]
[336926501,1725244259509,-671.54,0.00026027,2]
[336926502,1725244259519,-520.61,0.00026027,2]
[336926503,1725244259528,-634.79,0.00026027,2]
[336926504,1725244259537,-557.69,0.00026027,2]
[336926505,1725244259547,-500.0,0.00026027,2]
[336926506,1725244259556,-699.39,0.00026027,2]
[336926507,1725244259565,-580.81237293,0.00026027,2]
[336926508,1725244259577,-473.53383477,0.00026027,2]
[336926509,1725244259586,-500.0,0.00026027,2]
[336926510,1725244259595,-3329.95,0.00026027,2]
[336926511,1725244259605,-500.0,0.00026027,2]
[336926512,1725244259614,-550.13,0.00026027,2]
[336926513,1725244259624,-500.0,0.00026027,2]
[336926514,1725244259633,-1131.15,0.00026027,2]
[336926515,1725244259643,-500.0,0.00026027,2]
[336926516,1725244259653,-500.0,0.00026027,2]
[336926517,1725244259662,-513.48,0.00026027,2]
[336926518,1725244259674,-500.0,0.00026027,2]
[336926519,1725244259684,-626.48,0.00026027,2]
[336926520,1725244259693,-880.22,0.00026027,2]
[336926521,1725244259704,-500.0,0.00026027,2]
[336926522,1725244259715,-500.0,0.00026027,2]
[336926523,1725244259726,-842.85,0.00026027,2]
[336926524,1725244259735,-660.85,0.00026027,2]
[336926525,1725244259746,-500.0,0.00026027,2]
[336926526,1725244259755,-500.0,0.00026027,2]
[336926527,1725244259767,-500.0,0.00026027,2]
[336926528,1725244259776,-500.0,0.00026027,2]
[336926529,1725244259787,-952.82,0.00026027,2]
[336926530,1725244259797,-926.65,0.00026027,2]
[336926531,1725244259806,-891.28,0.00026027,2]
[336926532,1725244259817,-732.92,0.00026027,2]
[336926533,1725244259827,-500.0,0.00026027,2]
[336926534,1725244259837,-500.0,0.00026027,2]
[336926535,1725244259846,-224.95618936,0.00026027,2]
[336926536,1725244259856,-1265.8,0.00026027,2]
[336926537,1725244259865,-576.04706634,0.00026027,2]
[336926538,1725244259875,-1169.73,0.00026027,2]
[336926539,1725244259885,-416.43133245,0.00026027,2]
[336926540,1725244259894,-170.08215444,0.00026027,2]
[336926541,1725244259904,-1792.34,0.00026027,2]
[336926542,1725244259913,-500.0,0.00026027,2]
[336926543,1725244259923,-1795.86,0.00026027,2]
[336926544,1725244259933,-500.0,0.00026027,2]
[336926545,1725244259943,-500.0,0.00026027,2]
[336926546,1725244259952,-500.0,0.00026027,2]
[336926547,1725244259962,-500.0,0.00026027,2]
[336926548,1725244259979,-2277.02,0.00026027,2]
[336926549,1725244259992,-500.0,0.00026027,2]
[336926550,1725244260003,-500.0,0.00026027,2]
[336926551,1725244260016,-500.0,0.00026027,2]
[336926552,1725244260027,-500.0,0.00026027,2]
[336926553,1725244260037,-1356.19,0.00026027,2]
[336926554,1725244260048,-12312.44,0.00026027,2]
[336926555,1725244260059,-840.25,0.00026027,2]
[336926556,1725244260070,-2656.64,0.00026027,2]
[336926557,1725244260080,-1908.92,0.00026027,2]
[336926558,1725244260091,-500.0,0.00026027,2]
[336926559,1725244260100,-718.57,0.00026027,2]
[336926560,1725244260111,-568.35,0.00026027,2]
[336926561,1725244260121,-1873.9,0.00026027,2]
[336926562,1725244260131,-500.0,0.00026027,2]
[336926563,1725244260141,-500.0,0.00026027,2]
[336926564,1725244260151,-516.77,0.00026027,2]
[336926565,1725244260161,-500.0,0.00026027,2]
[336926566,1725244260171,-2353.96,0.00026027,2]
[336926567,1725244260182,-2544.03,0.00026027,2]
[336926568,1725244260192,-781.86,0.00026027,2]
[336926569,1725244260202,-584.55,0.00026027,2]
[336926570,1725244260212,-500.0,0.00026027,2]
[336926571,1725244260222,-530.75,0.00026027,2]
[336926572,1725244260232,-1003.77,0.00026027,2]
[336926573,1725244260241,-500.0,0.00026027,2]
[336926574,1725244260252,-500.0,0.00026027,2]
[336926575,1725244260264,-500.0,0.00026027,2]
[336926576,1725244260274,-1362.28,0.00026027,2]
[336926577,1725244260284,-1079.24,0.00026027,2]
[336926578,1725244260293,-1444.21,0.00026027,2]
[336926579,1725244260303,-1337.77,0.00026027,2]
[336926580,1725244260313,-500.0,0.00026027,2]
[336926581,1725244260322,-1483.34,0.00026027,2]
[336926582,1725244260332,-500.0,0.00026027,2]
[336926583,1725244260342,-575.48,0.00026027,2]
[336926584,1725244260351,-500.0,0.00026027,2]
[336926585,1725244260361,-1890.91,0.00026027,2]
[336926586,1725244260371,-4444.47,0.00026027,2]
[336926587,1725244260381,-1535.45,0.00026027,2]
[336926588,1725244260392,-1845.12,0.00026027,2]
[336926589,1725244260402,-2261.1,0.00026027,2]
[336926590,1725244260412,-619.59,0.00026027,2]
[336926591,1725244260422,-500.0,0.00026027,2]
[336926592,1725244260432,-1434.23,0.00026027,2]
[336926593,1725244260442,-1255.7,0.00026027,2]
[336926594,1725244260453,-1004.6,0.00026027,2]
[336926595,1725244260463,-983.95,0.00026027,2]
[336926596,1725244260472,-578.71,0.00026027,2]
[336926597,1725244260482,-1246.24,0.00026027,2]
[336926598,1725244260492,-1327.41,0.00026027,2]
[336926599,1725244260506,-878.27,0.00026027,2]
[336926600,1725244260520,-1189.91,0.00026027,2]
[336926601,1725244260530,-919.9,0.00026027,2]
[336926602,1725244260539,-584.36,0.00026027,2]
[336926603,1725244260549,-500.0,0.00026027,2]
[336926604,1725244260559,-1473.81,0.00026027,2]
[336926605,1725244260568,-771.66,0.00026027,2]
[336926606,1725244260580,-523.46,0.00026027,2]
[336926607,1725244260592,-532.51,0.00026027,2]
[336926608,1725244260601,-854.3,0.00026027,2]
[336926609,1725244260615,-522.04,0.00026027,2]
[336926610,1725244260625,-7078.87,0.00026027,2]
[336926611,1725244260636,-500.0,0.00026027,2]
[336926612,1725244260646,-828.09,0.00026027,2]
[336926613,1725244260657,-500.0,0.00026027,2]
[336926614,1725244260667,-500.0,0.00026027,2]
[336926615,1725244260677,-1368.86,0.00026027,2]
[336926616,1725244260687,-1446.34,0.00026027,2]
[336926617,1725244260697,-500.0,0.00026027,2]
[336926618,1725244260706,-500.0,0.00026027,2]
[336926619,1725244260716,-1217.74,0.00026027,2]
[336926620,1725244260726,-1577.1,0.00026027,2]
[336926621,1725244260736,-689.03,0.00026027,2]
[336926622,1725244260746,-686.55,0.00026027,2]
[336926623,1725244260756,-1195.91,0.00026027,2]
[336926624,1725244260771,-500.0,0.00026027,2]
[336926625,1725244260781,-3222.21,0.00026027,2]
[336926626,1725244260791,-1060.84,0.00026027,2]
[336926627,1725244260800,-1192.01,0.00026027,2]
[336926628,1725244260810,-2658.99,0.00026027,2]
[336926629,1725244260820,-500.0,0.00026027,2]
[336926630,1725244260830,-1057.63,0.00026027,2]
[336926631,1725244260840,-1126.56,0.00026027,2]
[336926632,1725244260850,-1146.75,0.00026027,2]
[336926633,1725244260860,-1788.13,0.00026027,2]
[336926634,1725244260870,-9068.51,0.00026027,2]
[336926635,1725244260879,-1162.01,0.00026027,2]
[336926636,1725244260889,-500.0,0.00026027,2]
[336926637,1725244260899,-500.0,0.00026027,2]
[336926638,1725244260908,-500.0,0.00026027,2]
[336926639,1725244260918,-500.0,0.00026027,2]
[336926640,1725244260928,-500.0,0.00026027,2]
[336926641,1725244260937,-2620.88,0.000261,14]
[336926642,1725244260947,-151.0,0.00026138,3]
[336926643,1725244260957,-180.070429,0.0002614,2]
[336926644,1725244260966,-180.07043,0.0002614,2]
[336926645,1725244260976,-606.01010791,0.0002619,2]
[336926646,1725244260985,-159.641674,0.00026245,2]
[336926647,1725244260995,-330.274636,0.00026245,2]
[336926648,1725244261008,-159.641673,0.00026245,2]
[336926649,1725244261019,-159.641674,0.00026245,2]
[336926650,1725244261029,-159.641674,0.00026245,2]
[336926651,1725244261039,-500.0,0.000263,2]
[336926652,1725244261049,-500.0,0.000263,2]
[336926653,1725244261058,-1011.0,0.000263,2]
[336926654,1725244261068,-561.37,0.00026301,2]
[336926655,1725244261078,-500.0,0.00026301,2]
[336926656,1725244261087,-500.0,0.00026301,2]
[336926657,1725244261098,-500.0,0.00026301,2]
[336926658,1725244261107,-500.0,0.00026301,2]
[336926659,1725244261117,-500.0,0.00026301,2]
[336926660,1725244261127,-500.0,0.00026301,2]
[336926661,1725244261136,-500.0,0.00026301,2]
[336926662,1725244261146,-638.44,0.00026301,2]
[336926663,1725244261156,-664.15,0.00026301,2]
[336926664,1725244261166,-500.0,0.00026301,2]
[336926665,1725244261175,-561.25,0.00026301,2]
[336926666,1725244261185,-500.0,0.00026301,2]
[336926667,1725244261195,-502.22980284,0.00026301,2]
[336926668,1725244261204,-500.0,0.00026301,2]
[336926669,1725244261214,-1199.58,0.00026301,2]
[336926670,1725244261226,-500.0,0.00026301,2]
[336926671,1725244261240,-500.0,0.00026301,2]
[336926672,1725244261251,-500.0,0.00026301,2]
[336926673,1725244261263,-983.39,0.00026301,2]
[336926674,1725244261273,-500.0,0.00026301,2]
[336926675,1725244261282,-500.0,0.00026301,2]
[336926676,1725244261292,-500.0,0.00026301,2]
[336926677,1725244261302,-500.0,0.00026301,2]
[336926678,1725244261312,-707.21,0.00026301,2]
[336926679,1725244261321,-711.51,0.00026301,2]
[336926680,1725244261331,-591.72,0.00026301,2]
[336926681,1725244261342,-509.95,0.00026301,2]
[336926682,1725244261352,-500.0,0.00026301,2]
[336926683,1725244261362,-500.0,0.00026301,2]
[336926684,1725244261374,-500.0,0.00026301,2]
[336926685,1725244261383,-837.03,0.00026301,2]
[336926686,1725244261393,-500.0,0.00026301,2]
[336926687,1725244261402,-342.16697863,0.00026301,2]
[336926688,1725244261412,-674.02,0.00026301,2]
[336926689,1725244261424,-500.0,0.00026301,2]
[336926690,1725244261435,-671.54,0.00026301,2]
[336926691,1725244261445,-520.61,0.00026301,2]
[336926692,1725244261455,-634.79,0.00026301,2]
[336926693,1725244261465,-557.69,0.00026301,2]
[336926694,1725244261474,-500.0,0.00026301,2]
[336926695,1725244261483,-699.39,0.00026301,2]
[336926696,1725244261493,-500.0,0.00026301,2]
[336926697,1725244261507,-3329.95,0.00026301,2]
[336926698,1725244261518,-552.33073603,0.00026301,2]
[336926699,1725244261529,-550.13,0.00026301,2]
[336926700,1725244261540,-500.0,0.00026301,2]
[336926701,1725244261551,-1131.15,0.00026301,2]
[336926702,1725244261561,-500.0,0.00026301,2]
[336926703,1725244261571,-500.0,0.00026301,2]
[336926704,1725244261584,-513.48,0.00026301,2]
[336926705,1725244261594,-500.0,0.00026301,2]
[336926706,1725244261604,-626.48,0.00026301,2]
[336926707,1725244261613,-880.22,0.00026301,2]
[336926708,1725244261623,-500.0,0.00026301,2]
[336926709,1725244261634,-500.0,0.00026301,2]
[336926710,1725244261645,-842.85,0.00026301,2]
[336926711,1725244261655,-660.85,0.00026301,2]
[336926712,1725244261667,-540.88458737,0.00026301,2]
[336926713,1725244261676,-500.0,0.00026301,2]
[336926714,1725244261686,-500.0,0.00026301,2]
[336926715,1725244261696,-151.0,0.00026301,7]
[336926716,1725244261707,-500.0,0.00026301,2]
[336926717,1725244261718,-952.82,0.00026301,2]
[336926718,1725244261730,-926.65,0.00026301,2]
[336926719,1725244261743,-891.28,0.00026301,2]
[336926720,1725244261755,-732.92,0.00026301,2]
[336926721,1725244261766,-500.0,0.00026301,2]
[336926722,1725244261776,-500.0,0.00026301,2]
[336926723,1725244261785,-1265.8,0.00026301,2]
[336926724,1725244261795,-1169.73,0.00026301,2]
[336926725,1725244261804,-1792.34,0.00026301,2]
[336926726,1725244261814,-500.0,0.00026301,2]
[336926727,1725244261824,-1795.86,0.00026301,2]
[336926728,1725244261833,-500.0,0.00026301,2]
[336926729,1725244261843,-500.0,0.00026301,2]
[336926730,1725244261852,-500.0,0.00026301,2]
[336926731,1725244261862,-271.91919725,0.00026301,2]
[336926732,1725244261872,-2277.02,0.00026301,2]
[336926733,1725244261881,-500.0,0.00026301,2]
[336926734,1725244261890,-214.06304223,0.00026301,2]
[336926735,1725244261900,-500.0,0.00026301,2]
[336926736,1725244261909,-500.0,0.00026301,2]
[336926737,1725244261920,-1356.19,0.00026301,2]
[336926738,1725244261929,-12312.44,0.00026301,2]
[336926739,1725244261938,-840.25,0.00026301,2]
[336926740,1725244261948,-2656.64,0.00026301,2]
[336926741,1725244262015,-1908.92,0.00026301,2]
[336926742,1725244262024,-500.0,0.00026301,2]
[336926743,1725244262035,-718.57,0.00026301,2]
[336926744,1725244262044,-568.35,0.00026301,2]
[336926745,1725244262053,-1873.9,0.00026301,2]
[336926746,1725244262062,-500.0,0.00026301,2]
[336926747,1725244262072,-500.0,0.00026301,2]
[336926748,1725244262082,-516.77,0.00026301,2]
[336926749,1725244262091,-500.0,0.00026301,2]
[336926750,1725244262101,-2353.96,0.00026301,2]
[336926751,1725244262110,-2544.03,0.00026301,2]
[336926752,1725244262119,-781.86,0.00026301,2]
[336926753,1725244262137,-584.55,0.00026301,2]
[336926754,1725244262147,-500.0,0.00026301,2]
[336926755,1725244262157,-530.75,0.00026301,2]
[336926756,1725244262166,-1003.77,0.00026301,2]
[336926757,1725244262176,-500.0,0.00026301,2]
[336926758,1725244262186,-500.0,0.00026301,2]
[336926759,1725244262196,-500.0,0.00026301,2]
[336926760,1725244262207,-1362.28,0.00026301,2]
[336926761,1725244262219,-1079.24,0.00026301,2]
[336926762,1725244262230,-1444.21,0.00026301,2]
[336926763,1725244262241,-1337.77,0.00026301,2]
[336926764,1725244262251,-500.0,0.00026301,2]
[336926765,1725244262260,-1483.34,0.00026301,2]
[336926766,1725244262270,-500.0,0.00026301,2]
[336926767,1725244262280,-575.48,0.00026301,2]
[336926768,1725244262289,-500.0,0.00026301,2]
[336926769,1725244262299,-1890.91,0.00026301,2]
[336926770,1725244262309,-4444.47,0.00026301,2]
[336926771,1725244262320,-1535.45,0.00026301,2]
[336926772,1725244262329,-151.0,0.00026301,7]
[336926773,1725244262340,-1845.12,0.00026301,2]
[336926774,1725244262350,-2261.1,0.00026301,2]
[336926775,1725244262360,-619.59,0.00026301,2]
[336926776,1725244262369,-500.0,0.00026301,2]
[336926777,1725244262379,-1434.23,0.00026301,2]
[336926778,1725244262389,-1255.7,0.00026301,2]
[336926779,1725244262401,-1004.6,0.00026301,2]
[336926780,1725244262411,-983.95,0.00026301,2]
[336926781,1725244262422,-578.71,0.00026301,2]
[336926782,1725244262431,-1246.24,0.00026301,2]
[336926783,1725244262441,-1327.41,0.00026301,2]
[336926784,1725244262452,-878.27,0.00026301,2]
[336926785,1725244262462,-1189.91,0.00026301,2]
[336926786,1725244262472,-919.9,0.00026301,2]
[336926787,1725244262482,-584.36,0.00026301,2]
[336926788,1725244262491,-246.55492495,0.00026301,2]
[336926789,1725244262506,-1473.81,0.00026301,2]
[336926790,1725244262520,-771.66,0.00026301,2]
[336926791,1725244262529,-523.46,0.00026301,2]
[336926792,1725244262538,-151.0,0.00026301,7]
[336926793,1725244262547,-532.51,0.00026301,2]
[336926794,1725244262557,-297.402624,0.00026301,7]
[336926795,1725244262566,-854.3,0.00026301,2]
[336926796,1725244262577,-522.04,0.00026301,2]
[336926797,1725244262587,-7078.87,0.00026301,2]
[336926798,1725244262599,-500.0,0.00026301,2]
[336926799,1725244262609,-828.09,0.00026301,2]
[336926800,1725244262619,-500.0,0.00026301,2]
[336926801,1725244262629,-500.0,0.00026301,2]
[336926802,1725244262639,-1368.86,0.00026301,2]
[336926803,1725244262650,-1446.34,0.00026301,2]
[336926804,1725244262661,-500.0,0.00026301,2]
[336926805,1725244262671,-500.0,0.00026301,2]
[336926806,1725244262681,-1217.74,0.00026301,2]
[336926807,1725244262691,-1577.1,0.00026301,2]
[336926808,1725244262701,-689.03,0.00026301,2]
[336926809,1725244262711,-686.55,0.00026301,2]
[336926810,1725244262721,-1195.91,0.00026301,2]
[336926811,1725244262731,-500.0,0.00026301,2]
[336926812,1725244262741,-3222.21,0.00026301,2]
[336926813,1725244262752,-1060.84,0.00026301,2]
[336926814,1725244262766,-1192.01,0.00026301,2]
[336926815,1725244262776,-2658.99,0.00026301,2]
[336926816,1725244262792,-500.0,0.00026301,2]
[336926817,1725244262803,-1057.63,0.00026301,2]
[336926818,1725244262813,-1126.56,0.00026301,2]
[336926819,1725244262824,-1146.75,0.00026301,2]
[336926820,1725244262834,-1788.13,0.00026301,2]
[336926821,1725244262844,-9068.51,0.00026301,2]
[336926822,1725244262854,-1162.01,0.00026301,2]
[336926823,1725244262863,-500.0,0.00026301,2]
[336926824,1725244262873,-500.0,0.00026301,2]
[336926825,1725244262884,-500.0,0.00026301,2]
[336926826,1725244262893,-500.0,0.00026301,2]
[336926827,1725244262903,-500.0,0.00026301,2]
[336926828,1725244262913,-151.0,0.0002631,3]
[336926829,1725244262922,-1500.0,0.00026419,2]
[336926830,1725244262932,-151.0,0.00026483,3]
[336926831,1725244262942,-7458.94652043,0.0002649,2]
[336926832,1725244262952,-180.070429,0.00026561,2]
[336926833,1725244262961,-180.07043,0.00026561,2]
[336926834,1725244262971,-159.641674,0.00026561,2]
[336926835,1725244262980,-330.274636,0.00026561,2]
[336926836,1725244262991,-159.641673,0.00026561,2]
[336926837,1725244263000,-159.641674,0.00026561,2]
[336926838,1725244263010,-159.641674,0.00026561,2]
[336926839,1725244263028,-500.0,0.00026574,2]
[336926840,1725244263037,-500.0,0.00026574,2]
[336926841,1725244263049,-500.0,0.00026574,2]
[336926842,1725244263060,-280.63957312,0.00026574,2]
[336926843,1725244263070,-561.37,0.00026575,2]
[336926844,1725244263080,-500.0,0.00026575,2]
[336926845,1725244263090,-500.0,0.00026575,2]
[336926846,1725244263100,-500.0,0.00026575,2]
[336926847,1725244263110,-500.0,0.00026575,2]
[336926848,1725244263120,-500.0,0.00026575,2]
[336926849,1725244263130,-500.0,0.00026575,2]
[336926850,1725244263140,-500.0,0.00026575,2]
[336926851,1725244263150,-638.44,0.00026575,2]
[336926852,1725244263160,-664.15,0.00026575,2]
[336926853,1725244263170,-500.0,0.00026575,2]
[336926854,1725244263180,-561.25,0.00026575,2]
[336926855,1725244263190,-500.0,0.00026575,2]
[336926856,1725244263200,-500.0,0.00026575,2]
[336926857,1725244263210,-1199.58,0.00026575,2]
[336926858,1725244263220,-500.0,0.00026575,2]
[336926859,1725244263230,-500.0,0.00026575,2]
[336926860,1725244263240,-500.0,0.00026575,2]
[336926861,1725244263251,-983.39,0.00026575,2]
[336926862,1725244263264,-500.0,0.00026575,2]
[336926863,1725244263274,-500.0,0.00026575,2]
[336926864,1725244263283,-500.0,0.00026575,2]
[336926865,1725244263293,-500.0,0.00026575,2]
[336926866,1725244263303,-707.21,0.00026575,2]
[336926867,1725244263312,-711.51,0.00026575,2]
[336926868,1725244263322,-591.72,0.00026575,2]
[336926869,1725244263333,-509.95,0.00026575,2]
[336926870,1725244263342,-500.0,0.00026575,2]
[336926871,1725244263352,-500.0,0.00026575,2]
[336926872,1725244263363,-260.40923459,0.00026575,2]
[336926873,1725244263372,-837.03,0.00026575,2]
[336926874,1725244263382,-256.801416,0.00026575,7]
[336926875,1725244263392,-500.0,0.00026575,2]
[336926876,1725244263402,-256.801416,0.00026575,7]
[336926877,1725244263412,-674.02,0.00026575,2]
[336926878,1725244263422,-500.0,0.00026575,2]
[336926879,1725244263432,-671.54,0.00026575,2]
[336926880,1725244263442,-520.61,0.00026575,2]
[336926881,1725244263452,-634.79,0.00026575,2]
[336926882,1725244263462,-557.69,0.00026575,2]
[336926883,1725244263472,-500.0,0.00026575,2]
[336926884,1725244263482,-699.39,0.00026575,2]
[336926885,1725244263492,-500.0,0.00026575,2]
[336926886,1725244263505,-3329.95,0.00026575,2]
[336926887,1725244263517,-550.13,0.00026575,2]
[336926888,1725244263526,-500.0,0.00026575,2]
[336926889,1725244263536,-1131.15,0.00026575,2]
[336926890,1725244263546,-500.0,0.00026575,2]
[336926891,1725244263556,-500.0,0.00026575,2]
[336926892,1725244263565,-513.48,0.00026575,2]
[336926893,1725244263575,-500.0,0.00026575,2]
[336926894,1725244263587,-626.48,0.00026575,2]
[336926895,1725244263598,-880.22,0.00026575,2]
[336926896,1725244263608,-500.0,0.00026575,2]
[336926897,1725244263619,-500.0,0.00026575,2]
[336926898,1725244263629,-842.85,0.00026575,2]
[336926899,1725244263641,-660.85,0.00026575,2]
[336926900,1725244263651,-500.0,0.00026575,2]
[336926901,1725244263662,-500.0,0.00026575,2]
[336926902,1725244263672,-500.0,0.00026575,2]
[336926903,1725244263682,-952.82,0.00026575,2]
[336926904,1725244263692,-926.65,0.00026575,2]
[336926905,1725244263703,-891.28,0.00026575,2]
[336926906,1725244263713,-732.92,0.00026575,2]
[336926907,1725244263723,-500.0,0.00026575,2]
[336926908,1725244263734,-500.0,0.00026575,2]
[336926909,1725244263746,-1265.8,0.00026575,2]
[336926910,1725244263757,-1169.73,0.00026575,2]
[336926911,1725244263768,-1792.34,0.00026575,2]
[336926912,1725244263779,-500.0,0.00026575,2]
[336926913,1725244263789,-1795.86,0.00026575,2]
[336926914,1725244263799,-500.0,0.00026575,2]
[336926915,1725244263809,-500.0,0.00026575,2]
[336926916,1725244263820,-500.0,0.00026575,2]
[336926917,1725244263832,-2277.02,0.00026575,2]
[336926918,1725244263842,-500.0,0.00026575,2]
[336926919,1725244263853,-233.64354413,0.00026575,2]
[336926920,1725244263864,-500.0,0.00026575,2]